lending/lending_fUSD_20251116
["ID","MTS","AMOUNT","RATE_DAILY","PERIOD"]
[394088977,1763262641612,-1000.0,0.00018082,2]
[394088978,1763262641621,-1983.0,0.00018132,2]
[394088979,1763262641630,-152.96,0.00018142,2]
[394088980,1763262641638,-151.0,0.00018145,2]
[394088981,1763262641647,-151.0,0.00018145,2]
[394088982,1763262641656,-301.14037554,0.00018145,2]
[394088983,1763262641665,-1361.58271724,0.00018145,2]
[394088984,1763262641674,-151.0,0.00018145,2]
[394088985,1763262641683,-151.0,0.00018145,2]
[394088986,1763262641691,-828.0,0.00018145,2]
[394088987,1763262641700,-151.0,0.00018145,2]
[394088988,1763262641709,-828.0,0.00018145,2]
[394088989,1763262641717,-151.0,0.00018145,2]
[394088990,1763262641726,-151.0,0.00018145,2]
[394088991,1763262641737,-166.0,0.00018145,2]
[394088992,1763262641745,-828.0,0.00018145,2]
[394088993,1763262641754,-151.0,0.00018145,2]
[394088994,1763262641763,-166.0,0.00018145,2]
[394088995,1763262641772,-151.0,0.00018145,2]
[394088996,1763262641780,-888.79830231,0.00018145,2]
[394088997,1763262641789,-151.0,0.00018145,2]
[394088998,1763262641799,-156.84565856,0.00018145,2]
[394088999,1763262641807,-166.0,0.00018145,2]
[394089000,1763262641816,-151.0,0.00018145,2]
[394089001,1763262641825,-166.0,0.00018145,2]
[394089002,1763262641834,-151.0,0.00018145,2]
[394089003,1763262641843,-166.0,0.00018145,2]
[394089004,1763262641851,-151.0,0.00018145,2]
[394089005,1763262641860,-253.61607805,0.00018145,2]
[394089006,1763262641869,-151.0,0.00018145,2]
[394089007,1763262641877,-151.0,0.00018145,2]
[394089008,1763262641886,-151.0,0.00018145,2]
[394089009,1763262641895,-151.0,0.00018145,2]
[394089010,1763262641905,-151.0,0.00018145,2]
[394089011,1763262641914,-151.0,0.00018145,2]
[394089012,1763262641923,-151.0,0.00018145,2]
[394089013,1763262641931,-151.0,0.00018145,2]
[394089014,1763262641940,-151.0,0.00018145,2]
[394089015,1763262641949,-151.0,0.00018145,2]
[394089016,1763262641958,-151.0,0.00018145,2]
[394089017,1763262641967,-152.97374781,0.00018145,2]
[394089018,1763262641976,-2945.27,0.00018198,2]
[394089019,1763262641985,-254.42663831,0.00018207,2]
[394089020,1763262641994,-300.0,0.00018207,2]
[394089021,1763262642003,-291.64,0.00018227,2]
[394089022,1763262642012,-1983.0,0.00018246,2]
[394089023,1763262642020,-151.0,0.00018307,2]
[394089024,1763262642029,-151.0,0.00018307,2]
[394089025,1763262642038,-151.0,0.00018307,2]
[394089026,1763262642048,-151.0,0.00018307,2]
[394089027,1763262642057,-203.02168888,0.00018307,2]
[394089028,1763262642066,-1325.9,0.00018356,2]
[394089029,1763262642075,-1294.0,0.000184,2]
[394089030,1763262642084,-1665.257,0.00018406,2]
[394089031,1763262642094,-3171.0,0.00018406,2]
[394089032,1763262642103,-6488.0,0.00018406,2]
[394089033,1763262642112,-561.694,0.00018406,2]
[394089034,1763262642121,-1983.0,0.00018487,2]
[394089035,1763262642130,-166.66,0.00018506,2]
[394089036,1763262642139,-503.35407745,0.00018521,2]
[394089037,1763262642148,-739.98478964,0.00018521,2]
[394089038,1763262642157,-641.94948175,0.00018521,2]
[394089039,1763262642166,-595.37131296,0.00018537,2]
[394089040,1763262642176,-151.0,0.00018537,2]
[394089041,1763262642186,-1000.0,0.000186,2]
[394089042,1763262642200,-1983.0,0.00018635,2]
[394089043,1763262642209,-1983.0,0.00018646,2]
[394089044,1763262642217,-496.42990783,0.0001871,2]
[394089045,1763262642235,-1486.57009217,0.0001871,2]
[394089046,1763262642243,-1245.42990783,0.00018715,2]
[394089047,1763262642254,-551.75042112,0.00018715,2]
[394089048,1763262642265,-185.81967105,0.00018715,2]
[394089049,1763262642274,-4968.0,0.0001876,2]
[394089050,1763262642283,-1000.0,0.0001876,2]
[394089051,1763262642292,-1983.0,0.00018765,2]
[394089052,1763262642302,-1983.0,0.00018771,2]
[394089053,1763262642311,-420.0,0.00018777,2]
[394089054,1763262642320,-420.0,0.00018777,2]
[394089055,1763262642329,-1983.0,0.00018816,2]
[394089056,1763262642344,-753.09100906,0.0001882,2]
[394089063,1763262643585,-1953.11067986,0.0001882,2]
[394089064,1763262643642,-3518.30699108,0.0001882,2]
[394089065,1763262643651,-261.25589403,0.0001882,2]
[394089066,1763262643660,-580.50432104,0.0001882,2]
[394089067,1763262643669,-1156.06020455,0.00018862,2]
[394089068,1763262643679,-1983.0,0.00018862,2]
[394089069,1763262643687,-1680.0,0.0001887,2]
[394089070,1763262643696,-1000.0,0.00018888,2]
[394089071,1763262643705,-300.0,0.00018897,2]
[394089072,1763262643714,-1000.0,0.000189,2]
[394089073,1763262643723,-1000.0,0.000189,2]
[394089074,1763262643732,-1000.0,0.000189,2]
[394089075,1763262643741,-1000.0,0.00018905,2]
[394089076,1763262643749,-1000.0,0.00018911,2]
[394089077,1763262643758,-150.0,0.00018915,2]
[394089078,1763262643767,-1000.0,0.00018919,2]
[394089079,1763262643776,-300.0,0.00018921,2]
[394089080,1763262643785,-1000.0,0.00018939,2]
[394089081,1763262643794,-1000.0,0.00018947,2]
[394089082,1763262643804,-1983.0,0.00018959,2]
[394089083,1763262643813,-150.0,0.0001896,2]
[394089084,1763262643822,-1000.0,0.00018968,2]
[394089085,1763262643831,-300.0,0.00018985,2]
[394089086,1763262643839,-300.0,0.0001899,2]
[394089087,1763262643848,-1000.0,0.00018994,2]
[394089088,1763262643857,-9573.25148835,0.00019,2]
[394089089,1763262643866,-700.94337128,0.00019,2]
[394089090,1763262643875,-242.06230496,0.00019,2]
[394089091,1763262643883,-300.0,0.00019,2]
[394089092,1763262643892,-150.0,0.00019004,2]
[394089093,1763262643901,-150.0,0.00019006,2]
[394089094,1763262643910,-300.0,0.0001903,2]
[394089095,1763262643919,-537.24901974,0.00019035,2]
[394089096,1763262643928,-1000.0,0.00019035,2]
[394089097,1763262643937,-300.0,0.00019038,2]
[394089098,1763262643946,-161.49385678,0.00019039,2]
[394089099,1763262643972,-138.50614322,0.00019039,2]
[394089100,1763262643981,-150.0,0.0001904,2]
[394089101,1763262643991,-300.0,0.00019044,2]
[394089102,1763262644000,-150.0,0.00019054,2]
[394089103,1763262644009,-300.0,0.00019076,2]
[394089104,1763262644018,-300.0,0.00019081,2]
[394089105,1763262644027,-150.0,0.00019084,2]
[394089106,1763262644035,-151.0,0.00019085,2]
[394089107,1763262644199,-617.40005154,0.00019085,2]
[394089108,1763262644217,-150.0,0.00019092,2]
[394089109,1763262644227,-132.46434652,0.00019116,2]
[394089111,1763262646461,-455.95,0.00019116,2]
[394089112,1763262646518,-3066.53830246,0.00019116,2]
[394089113,1763262646572,-1434.61950838,0.00019116,2]
[394089114,1763262646733,-5603.70043828,0.00019116,2]
[394089115,1763262646743,-290.25216052,0.00019116,2]
[394089116,1763262646752,-261.25589402,0.00019116,2]
[394089117,1763262646761,-166.66,0.00019117,2]
[394089118,1763262646770,-300.0,0.00019122,2]
[394089119,1763262646779,-300.0,0.00019126,2]
[394089120,1763262646788,-300.0,0.00019137,2]
[394089121,1763262646797,-1000.0,0.00019142,2]
[394089122,1763262646806,-1983.0,0.00019144,2]
[394089123,1763262646815,-403.44020328,0.00019151,2]
[394089124,1763262646824,-300.0,0.00019165,2]
[394089125,1763262646833,-645.28,0.00019174,2]
[394089126,1763262646841,-150.0,0.00019175,2]
[394089127,1763262646850,-151.0,0.00019178,2]
[394089128,1763262646859,-291.64,0.00019187,2]
[394089129,1763262646868,-1983.0,0.0001921,2]
[394089130,1763262646877,-287.61899177,0.00019251,2]
[394089131,1763262646886,-6702.50101094,0.00019349,2]
[394089132,1763262646895,-334.5472959,0.00019358,2]
[394089133,1763262646904,-151.0,0.00019358,2]
[394089134,1763262646913,-2957.0,0.00019421,2]
[394089135,1763262646922,-1000.0,0.00019438,2]
[394089136,1763262646931,-1000.0,0.00019438,2]
[394089137,1763262646940,-537.24901974,0.00019451,2]
[394089138,1763262646949,-18675.90799901,0.000195,7]
[394089139,1763262646958,-478.96003305,0.000195,7]
[394089140,1763262646967,-2957.0,0.0001952,2]
[394089141,1763262646976,-151.0,0.00019633,2]
[394089142,1763262646985,-640.24385345,0.00019633,2]
[394089143,1763262646994,-2957.0,0.00019649,2]
[394089144,1763262647003,-10057.37,0.00019726,2]
[394089145,1763262647012,-156.587,0.00019726,2]
[394089146,1763262647021,-166.66,0.00019727,2]
[394089147,1763262647030,-303.44,0.00019763,2]
[394089148,1763262647039,-150.0,0.00019775,2]
[394089149,1763262647047,-150.0,0.00019775,2]
[394089150,1763262647057,-1000.0,0.0001979,2]
[394089151,1763262647066,-500.0,0.000198,7]
[394089152,1763262647075,-6224.50868,0.0001982,2]
[394089153,1763262647083,-1156.06020455,0.00019823,2]
[394089154,1763262647093,-9857.3831,0.00019823,2]
[394089155,1763262647102,-2957.0,0.00019834,2]
[394089156,1763262647111,-537.24901974,0.00019867,2]
[394089157,1763262647120,-700.0,0.000199,7]
[394089158,1763262647128,-213.41473698,0.00019913,2]
[394089159,1763262647137,-150.39,0.00019913,2]
[394089160,1763262647146,-150.39,0.00019913,2]
[394089161,1763262647155,-150.39,0.00019913,2]
[394089162,1763262647164,-150.39,0.00019913,2]
[394089163,1763262647173,-150.39,0.00019913,2]
[394089164,1763262647182,-150.39,0.00019913,2]
[394089165,1763262647191,-150.39,0.00019913,2]
[394089166,1763262647200,-40021.12720633,0.00019922,2]
[394089167,1763262647208,-71769.73212494,0.00019923,2]
[394089168,1763262647224,-614.0905448,0.00019923,2]
[394089169,1763262647234,-1001.85872633,0.00019923,2]
[394089170,1763262651976,300.0,0.00012368,2]
[394089177,1763263303185,251.85958361,0.00030136,120]
[394089187,1763263368745,150.0,0.00018343,120]
[394089189,1763263503866,159.0,0.00027665,120]
[394089201,1763263741370,150.0,0.00030135,120]
[394089229,1763263804185,158.0,0.00027022,120]
[394089257,1763263831548,-563.0,0.00015598,2]
[394089258,1763263831559,-300.0,0.00015598,2]
[394089259,1763263831568,-300.0,0.00015598,2]
[394089260,1763263831578,-1200.0,0.00015598,2]
[394089261,1763263831587,-500.0,0.00015599,2]
[394089262,1763263831596,-500.0,0.00015599,2]
[394089263,1763263831606,-500.0,0.00015599,2]
[394089264,1763263831615,-500.0,0.00015599,2]
[394089265,1763263831625,-170.53887684,0.00015599,2]
[394089266,1763263831634,-500.0,0.00015599,2]
[394089267,1763263831643,-500.0,0.00015599,2]
[394089268,1763263831654,-500.0,0.00015599,2]
[394089269,1763263831663,-500.0,0.00015599,2]
[394089270,1763263831673,-646.70741837,0.00015599,2]
[394089271,1763263831682,-500.0,0.00015599,2]
[394089272,1763263831692,-500.0,0.00015599,2]
[394089273,1763263831701,-500.0,0.00015599,2]
[394089274,1763263831711,-500.0,0.00015599,2]
[394089275,1763263831720,-315.08532643,0.00015599,2]
[394089276,1763263831729,-500.0,0.00015599,2]
[394089277,1763263831738,-500.0,0.00015599,2]
[394089278,1763263831748,-500.0,0.00015599,2]
[394089279,1763263831757,-500.0,0.00015599,2]
[394089280,1763263831766,-500.0,0.00015599,2]
[394089281,1763263831775,-500.0,0.00015599,2]
[394089282,1763263831785,-500.0,0.00015599,2]
[394089283,1763263831795,-500.0,0.00015599,2]
[394089284,1763263831803,-500.0,0.00015599,2]
[394089285,1763263831813,-500.0,0.00015599,2]
[394089286,1763263831822,-12066.7546812,0.000156,2]
[394089287,1763263831835,-93295.20409402,0.000156,2]
[394089288,1763263831844,-156.32545632,0.00016338,2]
[394089289,1763263831856,-500.0,0.00016438,2]
[394089290,1763263831866,-500.0,0.00016438,2]
[394089291,1763263831875,-337.04464131,0.00016438,2]
[394089292,1763263831884,-457.09050037,0.00016438,2]
[394089293,1763263831894,-500.0,0.00016438,2]
[394089294,1763263831904,-2173.73,0.00016438,2]
[394089295,1763263831913,-420.0,0.00017061,2]
[394089296,1763263831923,-420.0,0.00017061,2]
[394089297,1763263831935,-1680.0,0.00017147,2]
[394089298,1763263831944,-300.0,0.00017158,2]
[394089299,1763263831954,-254.42663831,0.00017158,2]
[394089300,1763263831964,-233.31,0.00017258,2]
[394089301,1763263831973,-200.0,0.000176,6]
[394089303,1763263831983,-500.0,0.00017616,2]
[394089304,1763263831992,-500.0,0.000177,6]
[394089306,1763263832002,-339.0,0.0001778,2]
[394089308,1763263832011,-277.35679052,0.00017782,2]
[394089309,1763263832020,-700.0,0.000178,6]
[394089310,1763263832030,-339.0,0.00017823,2]
[394089311,1763263832039,-1000.0,0.000179,6]
[394089312,1763263832048,-9656.32733943,0.000179,2]
[394089313,1763263832057,-175.49821026,0.000179,2]
[394089314,1763263832067,-339.0,0.00017954,2]
[394089315,1763263832076,-339.0,0.00017955,2]
[394089317,1763263832085,-503.35407745,0.00017973,2]
[394089319,1763263832094,-641.94948175,0.00017973,2]
[394089321,1763263832103,-500.0,0.00017973,2]
[394089323,1763263832112,-250.0,0.00017989,2]
[394089325,1763263832122,-151.0,0.00017989,2]
[394089327,1763263832131,-574.12855637,0.00017989,2]
[394089329,1763263832140,-151.0,0.00017989,2]
[394089331,1763263832149,-250.0,0.00017989,2]
[394089332,1763263832159,-151.0,0.00017989,2]
[394089334,1763263832168,-250.0,0.00017989,2]
[394089337,1763263832177,-151.0,0.00017989,2]
[394089338,1763263832186,-250.0,0.00017989,2]
[394089341,1763263832195,-151.0,0.00017989,2]
[394089343,1763263832204,-250.0,0.00017989,2]
[394089344,1763263832214,-250.0,0.00017989,2]
[394089346,1763263832223,-151.0,0.00017989,2]
[394089348,1763263832232,-250.0,0.00017989,2]
[394089350,1763263832241,-151.0,0.00017989,2]
[394089353,1763263832251,-250.0,0.00017989,2]
[394089354,1763263832260,-250.0,0.00017989,2]
[394089356,1763263832271,-151.0,0.00017989,2]
[394089358,1763263832280,-250.0,0.00017989,2]
[394089360,1763263832289,-250.0,0.00017989,2]
[394089362,1763263832299,-151.0,0.00017989,2]
[394089364,1763263832308,-250.0,0.00017989,2]
[394089366,1763263832318,-250.0,0.00017989,2]
[394089368,1763263832327,-151.0,0.00017989,2]
[394089370,1763263832336,-250.0,0.00017989,2]
[394089372,1763263832345,-151.0,0.00017989,2]
[394089374,1763263832354,-250.0,0.00017989,2]
[394089376,1763263832364,-250.0,0.00017989,2]
[394089377,1763263832373,-250.0,0.00017989,2]
[394089378,1763263832382,-250.0,0.00017989,2]
[394089379,1763263832392,-151.0,0.00017989,2]
[394089380,1763263832401,-250.0,0.00017989,2]
[394089381,1763263832410,-250.0,0.00017989,2]
[394089382,1763263832419,-250.0,0.00017989,2]
[394089383,1763263832429,-151.0,0.00017989,2]
[394089384,1763263832438,-250.0,0.00017989,2]
[394089385,1763263832448,-151.0,0.00017989,2]
[394089386,1763263832457,-151.0,0.00017989,2]
[394089387,1763263832466,-151.0,0.00017989,2]
[394089388,1763263832476,-151.0,0.00017989,2]
[394089389,1763263832485,-151.0,0.00017989,2]
[394089390,1763263832494,-151.0,0.00017989,2]
[394089391,1763263832503,-151.0,0.00017989,2]
[394089392,1763263832513,-151.0,0.00017989,2]
[394089393,1763263832522,-151.0,0.00017989,2]
[394089394,1763263832531,-151.0,0.00017989,2]
[394089395,1763263832540,-151.0,0.00017989,2]
[394089396,1763263832550,-322.6107,0.00017989,2]
[394089397,1763263832560,-200.0,0.00017989,2]
[394089398,1763263832570,-254.27736446,0.0001799,2]
[394089399,1763263832579,-300.0,0.00017999,2]
[394089400,1763263832589,-300.0,0.00017999,2]
[394089401,1763263832598,-224.9715277,0.00017999,2]
[394089402,1763263832607,-295.38889371,0.00017999,2]
[394089403,1763263832616,-500.0,0.00017999,2]
[394089404,1763263832626,-559.47069299,0.00017999,2]
[394089405,1763263832636,-2000.0,0.00018,2]
[394089406,1763263832646,-634.78295182,0.00018,2]
[394089407,1763263832678,-712.17874627,0.00018,2]
[394089408,1763263832689,-633.49960292,0.00018,2]
[394089412,1763263837524,-253.6841671,0.000179,2]
[394089413,1763263837535,-1143.27328618,0.00018,2]
[394089414,1763263837546,-696.74,0.00018,2]
[394089415,1763263837557,-10875.00603394,0.00018,2]
[394089451,1763263839511,-1340.44151226,0.00018,2]
[394089452,1763263839577,-1690.66002,0.00018,2]
[394089454,1763263839591,-918.085566,0.00018,2]
[394089456,1763263839602,-526.28371353,0.00018,2]
[394089458,1763263839613,-1265.49379191,0.00018,2]
[394089460,1763263839625,-1555.86370004,0.00018,2]
[394089462,1763263839640,-621651.70140275,0.00018,2]
[394089468,1763263839692,-1088.94000001,0.00018,2]
[394089475,1763263839750,-1173.22049338,0.00018,2]
[394089488,1763263839866,-2017.07703424,0.00018,2]
[394089564,1763263844412,-57279.80005662,0.00018,2]
[394089569,1763263845663,-347.30990093,0.00018,2]
[394089570,1763263845703,-97981.1386095,0.00018,2]
[394089571,1763263845883,-261.00905282,0.00018,2]
[394089866,1763264209624,514.277694,0.000165,7]
[394089886,1763264768086,152.96,8.4e-05,2]
[394089897,1763264941929,150.0,0.00030134,120]
[394089905,1763265031768,-150.73376493,0.000162,2]
[394089906,1763265031778,-166.66,0.00016897,2]
[394089907,1763265031787,-253.8243709,0.00016931,2]
[394089908,1763265031797,-300.0,0.00016966,2]
[394089909,1763265031806,-90.75869738,0.00017035,2]
[394089910,1763265031980,-472.76130262,0.00017035,2]
[394089911,1763265031990,-894.04,0.00017035,2]
[394089912,1763265031999,-1000.0,0.00017058,2]
[394089913,1763265032009,-238.73229121,0.00017109,2]
[394089914,1763265032018,-166.66,0.00017252,2]
[394089915,1763265032027,-150.0,0.00017303,2]
[394089916,1763265032036,-320.56,0.00017582,2]
[394089917,1763265032045,-182.07,0.00017589,2]
[394089918,1763265032055,-166.66,0.00017608,2]
[394089919,1763265032064,-222.22926538,0.00017616,2]
[394089920,1763265032073,-300.0,0.00017617,2]
[394089921,1763265032083,-1200.0,0.00017617,2]
[394089922,1763265032093,-2957.0,0.00017618,2]
[394089923,1763265032102,-375.83,0.00017629,2]
[394089924,1763265032111,-1017.419,0.0001764,2]
[394089925,1763265032121,-2957.0,0.00017661,2]
[394089926,1763265032130,-277.35679052,0.00017708,2]
[394089927,1763265032140,-151.0,0.00017708,2]
[394089928,1763265032149,-2957.0,0.00017716,2]
[394089929,1763265032158,-320.57,0.00017719,2]
[394089930,1763265032167,-999.99,0.00017728,2]
[394089931,1763265032176,-8270.52,0.00017728,2]
[394089932,1763265032185,-7373.92,0.00017728,2]
[394089933,1763265032195,-9999.99,0.00017728,2]
[394089934,1763265032203,-8060.3,0.00017728,2]
[394089935,1763265032212,-9999.99,0.00017728,2]
[394089936,1763265032221,-9252.94651583,0.00017728,2]
[394089984,1763265039792,-747.04348417,0.00017728,2]
[394089985,1763265039801,-150.99,0.00017728,2]
[394089986,1763265039811,-1722.39,0.00017728,2]
[394089987,1763265039820,-2517.49,0.00017728,2]
[394089988,1763265039830,-2957.0,0.0001773,2]
[394089989,1763265039839,-375.83,0.00017766,2]
[394089990,1763265039848,-7136.42658553,0.000178,2]
[394089991,1763265039857,-500.0,0.00017819,2]
[394089992,1763265039867,-182.96749093,0.00017819,2]
[394089993,1763265039876,-161.89894449,0.00017819,2]
[394089994,1763265039886,-590.56503627,0.00017819,2]
[394089995,1763265039895,-300.0,0.0001782,2]
[394089996,1763265039905,-195.0,0.0001782,2]
[394089997,1763265039914,-3112.25434,0.0001782,2]
[394089998,1763265039924,-300.0,0.0001782,2]
[394089999,1763265039933,-193.0,0.0001782,2]
[394090000,1763265039943,-2500.0,0.0001782,2]
[394090001,1763265039953,-5069.70708677,0.0001782,4]
[394090002,1763265039963,-250.0,0.0001782,2]
[394090003,1763265039972,-250.0,0.00017889,2]
[394090004,1763265039984,-151.0,0.00017889,2]
[394090005,1763265039994,-250.0,0.00017889,2]
[394090006,1763265040004,-151.0,0.00017889,2]
[394090007,1763265040013,-169.95726967,0.00017889,2]
[394090008,1763265040023,-151.0,0.00017889,2]
[394090009,1763265040032,-151.0,0.00017889,2]
[394090010,1763265040043,-151.0,0.00017889,2]
[394090011,1763265040052,-151.0,0.00017889,2]
[394090012,1763265040062,-151.0,0.00017889,2]
[394090013,1763265040071,-151.0,0.00017889,2]
[394090014,1763265040080,-151.0,0.00017889,2]
[394090015,1763265040090,-151.0,0.00017889,2]
[394090016,1763265040099,-151.0,0.00017889,2]
[394090017,1763265040109,-200.0,0.00017889,2]
[394090018,1763265040118,-151.0,0.00017889,2]
[394090019,1763265040127,-250.0,0.00017889,2]
[394090020,1763265040137,-250.0,0.00017889,2]
[394090021,1763265040146,-250.0,0.00017889,2]
[394090022,1763265040156,-250.0,0.00017889,2]
[394090023,1763265040166,-250.0,0.00017889,2]
[394090024,1763265040175,-250.0,0.00017889,2]
[394090025,1763265040184,-574.12855637,0.00017889,2]
[394090026,1763265040194,-250.0,0.00017889,2]
[394090027,1763265040203,-250.0,0.00017889,2]
[394090028,1763265040212,-250.0,0.00017889,2]
[394090029,1763265040222,-250.0,0.00017889,2]
[394090030,1763265040231,-250.0,0.00017889,2]
[394090031,1763265040241,-151.0,0.00017889,2]
[394090032,1763265040252,-151.0,0.00017889,2]
[394090033,1763265040266,-151.0,0.00017889,2]
[394090034,1763265040275,-151.0,0.00017889,2]
[394090035,1763265040284,-151.0,0.00017889,2]
[394090036,1763265040295,-151.0,0.00017889,2]
[394090037,1763265040304,-151.0,0.00017889,2]
[394090038,1763265040313,-151.0,0.00017889,2]
[394090039,1763265040322,-151.0,0.00017889,2]
[394090040,1763265040333,-151.0,0.00017889,2]
[394090041,1763265040343,-151.0,0.00017889,2]
[394090042,1763265040352,-151.0,0.00017889,2]
[394090043,1763265040361,-151.0,0.00017889,2]
[394090044,1763265040371,-322.6107,0.00017889,2]
[394090045,1763265040380,-56258.6117,0.00017899,2]
[394090046,1763265040389,-1185.58396956,0.000179,2]
[394090047,1763265040426,-340.39480806,0.000179,2]
[394090048,1763265040435,-518.20263194,0.000179,2]
[394090049,1763265040444,-157.94838918,0.000179,2]
[394090051,1763265040454,-11112.6154813,0.000179,2]
[394090052,1763265040463,-221.97364623,0.000179,2]
[394090053,1763265040472,-166.66,0.00017964,2]
[394090054,1763265040482,-523.0,0.00017973,2]
[394090055,1763265040491,-239.98478964,0.00017973,2]
[394090056,1763265040501,-151.17101838,0.00017982,2]
[394090057,1763265040511,-2957.0,0.00017986,2]
[394090058,1763265040520,-10919.11826651,0.00017999,2]
[394090059,1763265040529,-300.0,0.00017999,2]
[394090060,1763265040538,-300.0,0.00017999,2]
[394090061,1763265040548,-300.0,0.00017999,2]
[394090062,1763265040558,-593443.63237151,0.00018,2]
[394090083,1763265043335,-8086.00539127,0.00018,2]
[394090084,1763265043347,-1068.85464755,0.00018,2]
[394090109,1763265123050,10000.0,0.00022,30]
[394090110,1763265129352,10000.0,0.00022,30]
[394090111,1763265135917,10000.0,0.00022,30]
[394090113,1763265141357,10000.0,0.00022,30]
[394090114,1763265146616,10000.0,0.00022,30]
[394090115,1763265153993,10000.0,0.00022,30]
[394090116,1763265159873,10000.0,0.00022,30]
[394090117,1763265165655,10000.0,0.00022,30]
[394090118,1763265171039,10000.0,0.00022,30]
[394090119,1763265176982,10000.0,0.00022,30]
[394090120,1763265182839,10000.0,0.00022,30]
[394090121,1763265188694,10000.0,0.00022,30]
[394090122,1763265230047,1000.0,0.00013699,2]
[394090124,1763265311662,339.0,0.00020196,120]
[394090125,1763265313174,339.0,0.00021206,120]
[394090126,1763265314419,339.0,0.00022266,120]
[394090127,1763265315670,339.0,0.00023379,120]
[394090128,1763265316918,339.0,0.00024548,120]
[394090129,1763265318863,339.0,0.00025776,120]
[394090130,1763265319722,339.0,0.00027065,120]
[394090131,1763265320957,339.0,0.00028418,120]
[394090132,1763265322223,339.0,0.00029839,120]
[394090272,1763265603355,173.0,0.00022509,120]
[394090274,1763265604818,173.0,0.00023635,120]
[394091379,1763265824196,502.49,0.00025145,120]
[394091689,1763265992115,155.34,0.00013219,2]
[394091901,1763266141225,150.0,0.00030133,120]
[394092025,1763266238026,-500.0,0.000161,2]
[394092026,1763266238036,-195.0,0.00016112,2]
[394092027,1763266238045,-150.0,0.000162,2]
[394092028,1763266238055,-195.0,0.00016225,2]
[394092029,1763266238064,-150.0,0.0001635,2]
[394092030,1763266238074,-1818.74832175,0.0001635,2]
[394092031,1763266238083,-1741.09512395,0.00016438,2]
[394092032,1763266238095,-70.34487605,0.00016438,2]
[394092033,1763266238104,-150.0,0.000165,2]
[394092034,1763266238113,-248.03032835,0.0001653,2]
[394092058,1763266238349,-51.96967165,0.0001653,2]
[394092060,1763266238358,-1200.0,0.0001653,2]
[394092062,1763266238368,-300.0,0.0001653,2]
[394092064,1763266238378,-1824.22962835,0.00016531,2]
[394092162,1763266239920,-5921.99037165,0.00016531,2]
[394092163,1763266239930,-150.0,0.0001665,2]
[394092164,1763266239941,-500.0,0.00016712,2]
[394092166,1763266239951,-200.0,0.00016738,2]
[394092168,1763266239961,-502.49,0.00016763,2]
[394092170,1763266239971,-999.0,0.00016794,3]
[394092172,1763266239980,-150.0,0.000168,2]
[394092174,1763266239989,-150.0,0.0001695,2]
[394092176,1763266239999,-643.0,0.00016959,2]
[394092178,1763266240008,-3792.0,0.00016986,2]
[394092179,1763266240018,-166.66,0.00017004,2]
[394092181,1763266240026,-150.0,0.000171,2]
[394092183,1763266240035,-150.0,0.0001725,2]
[394092185,1763266240044,-192.67,0.00017312,2]
[394092186,1763266240054,-510.0,0.00017397,2]